bitfinex/quotes_BTCUSD_20240901
["timestamp","ask_amount","ask_price","bid_price","bid_amount"]
[1725173399037,1.06266985,58382.0,58381.0,0.0048998]
[1725173399256,1.19120176,58382.0,58381.0,0.0048998]
[1725173399491,1.0681986,58382.0,58381.0,0.0048998]
[1725173399700,1.0681986,58382.0,58381.0,0.0008998]
[1725173399912,0.93807919,58382.0,58381.0,0.0008998]
[1725173400558,0.87907919,58382.0,58381.0,0.0008998]
[1725173403202,1.0076111,58382.0,58381.0,0.0008998]
[1725173403625,0.6650401,58382.0,58381.0,0.0008998]
[1725173403842,0.53650819,58382.0,58381.0,0.0667998]
[1725173404346,0.12953191,58382.0,58381.0,1.35838934]
[1725173404614,0.001,58382.0,58381.0,1.4533043]
[1725173404847,0.000818,58385.0,58384.0,1.2089021]
[1725173405062,0.000818,58385.0,58384.0,1.44821706]
[1725173405277,0.000818,58385.0,58384.0,1.79077606]
[1725173406457,0.000818,58385.0,58384.0,1.85392882]
[1725173406676,0.000818,58385.0,58384.0,1.86592882]
[1725173406910,0.000818,58385.0,58384.0,1.87592882]
[1725173408809,0.000818,58385.0,58384.0,1.88005326]
[1725173409028,0.000818,58385.0,58384.0,1.87968046]
[1725173412766,0.000818,58385.0,58384.0,1.37905374]
[1725173422021,0.000818,58385.0,58384.0,1.53712146]
[1725173422713,0.000818,58385.0,58384.0,1.87968046]
[1725173423149,0.56540786,58408.0,58403.0,0.171222]
[1725173423150,0.61011478,58408.0,58403.0,0.171222]
[1725173423356,0.023,58407.0,58403.0,0.171222]
[1725173423983,0.04985147,58407.0,58403.0,0.171222]
[1725173424192,0.22106447,58407.0,58403.0,0.171222]
[1725173424582,0.22106447,58407.0,58404.0,0.171219]
[1725173424583,0.02685147,58407.0,58404.0,0.171219]
[1725173425615,0.02685147,58407.0,58403.0,0.002]
[1725173425849,0.02685147,58407.0,58403.0,0.173223]
[1725173426058,0.02685147,58407.0,58403.0,0.172223]
[1725173426450,0.12168433,58407.0,58404.0,0.004]
[1725173426683,0.29289633,58407.0,58404.0,0.003]
[1725173426866,0.29289633,58407.0,58403.0,0.171223]
[1725173427315,0.29289633,58407.0,58403.0,0.174223]
[1725173428139,0.29289633,58407.0,58403.0,0.178223]
[1725173429390,0.29289633,58407.0,58383.0,0.01407054]
[1725173429391,0.0816,58389.0,58383.0,0.01407054]
[1725173429607,0.0816,58389.0,58376.0,0.0049461]
[1725173429608,0.60866186,58385.0,58376.0,0.0049461]
[1725173429830,0.60866186,58385.0,58379.0,0.00502314]
[1725173430469,0.31910886,58385.0,58379.0,0.00502314]
[1725173430683,0.31910886,58385.0,58381.0,0.0058459]
[1725173432057,0.31910886,58385.0,58384.0,0.0018998]
[1725173432271,0.566829,58385.0,58384.0,0.0018998]
[1725173433541,0.342503,58394.0,58384.0,0.0018998]
[1725173433765,0.342489,58396.0,58388.0,0.01407054]
[1725173434033,0.1346,58399.0,58388.0,0.01407054]
[1725173434034,0.171249,58395.0,58391.0,0.00412444]
[1725173435275,0.171249,58395.0,58391.0,0.00112444]
[1725173435502,0.171251,58394.0,58391.0,0.00112444]
[1725173435730,0.171251,58394.0,58391.0,0.00212444]
[1725173435938,0.171251,58394.0,58391.0,0.00112444]
[1725173436153,0.171251,58394.0,58391.0,0.00212444]
[1725173436373,0.171254,58393.0,58391.0,0.00212444]
[1725173436606,0.171254,58393.0,58391.0,0.00112444]
[1725173437301,0.342493,58396.0,58391.0,0.00112444]
[1725173437302,0.17125,58394.0,58391.0,0.00112444]
[1725173437747,0.342485,58397.0,58392.0,0.00112444]
[1725173437998,0.171247,58395.0,58392.0,0.00112444]
[1725173438450,0.171247,58395.0,58394.0,0.00112444]
[1725173440781,0.171242,58397.0,58394.0,0.00112444]
[1725173441023,0.171246,58396.0,58394.0,0.06622444]
[1725173442321,0.171247,58395.0,58394.0,0.06622444]
[1725173443218,0.171273,58386.0,58385.0,0.0049461]
[1725173443434,0.1576,58395.0,58385.0,0.0049461]
[1725173443435,0.342519,58391.0,58389.0,0.0049461]
[1725173443657,0.171262,58390.0,58389.0,0.01107054]
[1725173443868,0.171258,58392.0,58389.0,0.01107054]
[1725173444529,0.17126,58391.0,58389.0,0.01107054]
[1725173445847,0.17126,58391.0,58389.0,0.01207054]
[1725173447878,0.342509,58393.0,58389.0,0.01207054]
[1725173448091,0.171261,58391.0,58389.0,0.01207054]
[1725173453287,0.171255,58393.0,58390.0,0.00112444]
[1725173453503,0.15818986,58396.0,58391.0,0.0659]
[1725173453719,0.171251,58394.0,58391.0,0.0659]
[1725173454657,0.171245,58396.0,58394.0,0.00112444]
[1725173454868,0.171244,58397.0,58394.0,0.00112444]
[1725173455290,0.171244,58396.0,58394.0,0.00112444]
[1725173456137,0.171247,58395.0,58394.0,0.00112444]
[1725173457631,0.15818986,58396.0,58389.0,0.01196924]
[1725173457632,0.342508,58393.0,58389.0,0.01196924]
[1725173457851,0.32945186,58390.0,58389.0,0.0058448]
[1725173458058,0.67197586,58390.0,58389.0,0.0058448]
[1725173458501,0.32945186,58390.0,58389.0,0.0058448]
[1725173460362,0.67197586,58390.0,58389.0,0.0058448]
[1725173460995,0.67197586,58390.0,58389.0,0.0078448]
[1725173463473,1.01449986,58390.0,58389.0,0.0078448]
[1725173468252,0.95120139,58390.0,58389.0,0.0078448]
[1725173472066,0.95120139,58390.0,58389.0,0.0028987]
[1725173475861,0.95120139,58390.0,58389.0,0.0078448]
[1725173477313,0.60867739,58390.0,58389.0,0.0078448]
[1725173478109,0.60867739,58390.0,58389.0,0.0028987]
[1725173478332,0.60867739,58390.0,58389.0,0.0078448]
[1725173479007,0.95120139,58390.0,58389.0,0.0078448]
[1725173479453,0.97420139,58390.0,58389.0,0.0078448]
[1725173480354,0.97420139,58390.0,58389.0,0.0028987]
[1725173480355,1.59154302,58390.0,58389.0,0.0028987]
[1725173480575,1.59541858,58390.0,58389.0,0.0028987]
[1725173480821,1.96480048,58390.0,58389.0,0.0028987]
[1725173481052,1.93794258,58390.0,58389.0,0.0028987]
[1725173481545,1.93794258,58390.0,58389.0,0.0018987]
[1725173481776,1.93994258,58390.0,58389.0,0.0018987]
[1725173482027,1.93994258,58390.0,58389.0,0.0028987]
[1725173482269,2.03994258,58390.0,58389.0,0.0008987]
[1725173482694,2.03994258,58390.0,58389.0,0.0018987]
[1725173482910,2.05793708,58390.0,58389.0,0.0018987]
[1725173483548,2.05793708,58390.0,58389.0,0.0028987]
[1725173486380,2.05593708,58390.0,58389.0,0.0028987]
[1725173486593,2.05793708,58390.0,58389.0,0.0028987]
[1725173492886,2.05793708,58390.0,58379.0,0.0008987]
[1725173492887,0.17716656,58380.0,58379.0,0.0008987]
[1725173493089,0.17716656,58380.0,58370.0,0.0008998]
[1725173493090,0.51982756,58371.0,58370.0,0.0008998]
[1725173493292,1.42853534,58371.0,58370.0,0.0008998]
[1725173493554,1.45058895,58371.0,58370.0,0.0008998]
[1725173493764,1.44806053,58371.0,58370.0,0.0008998]
[1725173494480,1.44806053,58371.0,58370.0,0.0018998]
[1725173495185,1.54806053,58371.0,58370.0,0.0018998]
[1725173495399,1.37286797,58371.0,58370.0,0.0018998]
[1725173495616,1.24779639,58371.0,58370.0,0.0018998]
[1725173495831,1.24879639,58371.0,58370.0,0.0028998]
[1725173496309,1.31121005,58371.0,58370.0,0.0018998]
[1725173496517,1.48252705,58371.0,58370.0,0.0008998]
[1725173496722,1.49452705,58371.0,58370.0,0.0028998]
[1725173498139,1.49452705,58371.0,58370.0,0.0632998]
[1725173498140,1.14989205,58371.0,58370.0,0.0632998]
[1725173498361,0.012,58371.0,58370.0,0.3123198]
[1725173499226,0.01,58371.0,58370.0,0.3113198]
[1725173499466,0.01,58371.0,58370.0,0.3103198]
[1725173499679,0.007,58371.0,58370.0,0.3113198]
[1725173499866,0.013,58371.0,58370.0,0.3123198]
[1725173500702,0.007,58371.0,58370.0,0.3113198]
[1725173500900,0.013,58371.0,58370.0,0.3123198]
[1725173501108,0.006,58371.0,58370.0,0.3113198]
[1725173501306,0.00576829,58371.0,58370.0,0.3103198]
[1725173501546,0.00576829,58371.0,58370.0,0.3153198]
[1725173502400,0.00576829,58371.0,58370.0,1.0056018]
[1725173502612,0.00576829,58371.0,58370.0,1.0046018]
[1725173502826,0.00576829,58371.0,58370.0,1.0066018]
[1725173505034,0.00576829,58371.0,58370.0,1.3591889]
[1725173506118,0.00576829,58371.0,58370.0,1.0165479]
[1725173506330,0.00576829,58371.0,58370.0,0.3262659]
[1725173506732,0.00576829,58371.0,58370.0,0.3212659]
[1725173509191,0.00576829,58371.0,58370.0,0.1499459]
[1725173512294,0.00576829,58371.0,58370.0,0.0722459]
[1725173515995,0.00658629,58371.0,58370.0,0.0722459]
[1725173516426,0.17790329,58371.0,58370.0,0.0722459]
[1725173516677,0.00658629,58371.0,58370.0,0.0722459]
[1725173518820,0.17790329,58371.0,58370.0,0.0722459]
[1725173521714,0.20476733,58371.0,58370.0,0.0722459]
[1725173523616,0.20476733,58371.0,58370.0,0.0672998]
[1725173523787,0.20476733,58371.0,58370.0,0.0722459]
[1725173524766,0.54740233,58371.0,58370.0,0.0722459]
[1725173525687,0.54740233,58371.0,58370.0,0.0672998]
[1725173525688,0.91303733,58371.0,58370.0,0.0672998]
[1725173525943,0.91303733,58371.0,58370.0,0.0722459]
[1725173526179,0.91303733,58371.0,58370.0,0.0118459]
[1725173526626,0.91303733,58371.0,58370.0,0.0068998]
[1725173526872,0.91303733,58371.0,58370.0,0.0098459]
[1725173527136,0.91303733,58371.0,58370.0,0.0048998]
[1725173527386,0.19899904,58371.0,58370.0,0.0008998]
[1725173527624,0.000818,58371.0,58370.0,1.1081227]
[1725173527860,0.000818,58371.0,58370.0,1.44833754]
[1725173528606,0.33297712,58388.0,58385.0,0.171275]
[1725173529055,0.176666,58390.0,58385.0,0.171275]
[1725173529543,0.176666,58390.0,58384.0,0.308579]
[1725173529544,0.171265,58389.0,58384.0,0.308579]
[1725173529771,0.26621364,58389.0,58384.0,0.308579]
[1725173531192,0.26621364,58389.0,58384.0,0.310579]
[1725173531656,0.26621364,58389.0,58385.0,0.171275]
[1725173533262,0.171268,58388.0,58384.0,0.1403]
[1725173533451,0.09494864,58386.0,58384.0,0.0616]
[1725173533761,0.09494864,58386.0,58385.0,0.002]
[1725173534205,0.09494864,58386.0,58385.0,0.003]
[1725173534666,0.09494864,58386.0,58384.0,0.0606]
[1725173534888,0.09494864,58386.0,58384.0,0.0696]
[1725173535077,0.09494864,58386.0,58384.0,0.0646]
[1725173535281,0.09494864,58386.0,58384.0,0.0606]
[1725173535487,0.09494864,58386.0,58385.0,0.005]
[1725173535717,0.09494864,58386.0,58385.0,0.009]
[1725173536145,1.03603057,58386.0,58385.0,0.009]
[1725173536361,1.10471564,58386.0,58385.0,0.009]
[1725173536586,1.10471564,58386.0,58385.0,0.004]
[1725173537029,0.59089564,58386.0,58377.0,0.0049461]
[1725173537240,0.09494864,58379.0,58377.0,0.0049461]
[1725173538386,0.171289,58381.0,58377.0,0.0049461]
[1725173538387,0.32949954,58381.0,58377.0,0.0049461]
[1725173538637,0.32949954,58381.0,58378.0,0.0049461]
[1725173539498,0.171292,58380.0,58378.0,0.0049461]
[1725173540412,0.171292,58380.0,58377.0,0.0119461]
[1725173540624,0.15821054,58381.0,58377.0,0.0119461]
[1725173540625,0.171295,58379.0,58377.0,0.0049461]
[1725173540840,0.171295,58379.0,58373.0,0.0700461]
[1725173540841,0.023,58378.0,58373.0,0.0700461]
[1725173541052,0.513927,58374.0,58373.0,0.0700461]
[1725173541278,0.536927,58374.0,58373.0,0.0700461]
[1725173541720,0.194309,58374.0,58373.0,0.0700461]
[1725173542674,0.023,58374.0,58373.0,0.0700461]
[1725173543546,0.023,58374.0,58373.0,0.0720461]
[1725173543897,0.171309,58374.0,58373.0,0.0750461]
[1725173544113,0.536927,58374.0,58373.0,0.005]
[1725173544516,0.879545,58374.0,58373.0,0.005]
[1725173545101,0.879545,58374.0,58373.0,0.003]
[1725173545300,0.879545,58374.0,58370.0,0.0008998]
[1725173545301,0.171317,58372.0,58370.0,0.0008998]
[1725173545525,0.023,58371.0,58370.0,0.0008998]
[1725173546549,0.194317,58371.0,58370.0,0.0008998]
[1725173547333,0.194317,58371.0,58370.0,0.0028998]
[1725173547773,0.194317,58371.0,58370.0,0.0058998]
[1725173548204,1.11009844,58371.0,58370.0,0.0058998]
[1725173549074,0.69516254,58371.0,58370.0,0.0028998]
[1725173549479,0.69516254,58371.0,58370.0,0.0008998]
[1725173549696,0.69516254,58371.0,58370.0,0.0018998]
[1725173550575,0.023,58371.0,58370.0,0.0018998]
[1725173550789,0.17131,58374.0,58370.0,0.0018998]
[1725173550993,0.023,58373.0,58370.0,0.0851998]
[1725173551643,0.023,58373.0,58371.0,0.0656]
[1725173553505,0.024,58373.0,58371.0,0.0656]
[1725173553733,0.195312,58373.0,58371.0,0.0656]
[1725173554147,0.171317,58371.0,58370.0,0.0008998]
[1725173554355,0.69516254,58371.0,58370.0,0.0008998]
[1725173555461,0.69516254,58371.0,58370.0,0.0028998]
[1725173555666,0.69516254,58371.0,58370.0,0.0038998]
[1725173555874,0.69814805,58371.0,58370.0,0.0038998]
[1725173557336,1.04078305,58371.0,58370.0,0.0038998]
[1725173558820,1.04078305,58371.0,58370.0,0.0008998]
[1725173559033,1.04078305,58371.0,58370.0,0.0018998]
[1725173559403,1.04078305,58371.0,58370.0,0.0008998]
[1725173560299,0.97754598,58371.0,58370.0,0.0008998]
[1725173560703,0.97754598,58371.0,58370.0,0.0018998]
[1725173562750,1.13130346,58371.0,58370.0,0.0018998]
[1725173562978,0.97754598,58371.0,58370.0,0.0018998]
[1725173563635,0.63491098,58371.0,58370.0,0.0018998]
[1725173563841,0.63491098,58371.0,58370.0,0.0674998]
[1725173563842,0.63192547,58371.0,58370.0,0.0674998]
[1725173565501,0.023,58371.0,58370.0,0.0674998]
[1725173565717,0.171312,58373.0,58370.0,0.0674998]
[1725173565938,0.09497347,58374.0,58370.0,0.0674998]
[1725173565939,0.023,58372.0,58371.0,0.171317]
[1725173566162,0.3694675,58377.0,58373.0,0.005]
[1725173566163,0.0268645,58377.0,58373.0,0.005]
[1725173566398,0.0268645,58377.0,58376.0,1.003415]
[1725173566615,0.0268645,58377.0,58376.0,0.660809]
[1725173567276,0.0298645,58377.0,58376.0,0.318203]
[1725173567746,0.0268645,58377.0,58376.0,0.318203]
[1725173567955,0.0268645,58377.0,58376.0,0.317203]
[1725173568180,0.0268645,58377.0,58376.0,0.6647551]
[1725173568398,0.0298645,58377.0,58376.0,0.6647551]
[1725173568610,0.0298645,58377.0,58376.0,0.6597551]
[1725173568611,0.0308645,58377.0,58376.0,0.6597551]
[1725173568867,0.0278645,58377.0,58376.0,0.6597551]
[1725173569106,0.0268645,58377.0,58376.0,0.6597551]
[1725173569542,0.0268645,58377.0,58376.0,0.6637551]
[1725173570376,0.09497347,58380.0,58379.0,0.0049461]
[1725173571629,0.09497347,58380.0,58379.0,0.0059461]
[1725173572057,0.09497347,58380.0,58379.0,0.0079461]
[1725173574763,0.171287,58382.0,58379.0,0.0728461]
[1725173574965,0.09497347,58383.0,58379.0,0.0728461]
[1725173574966,0.023,58381.0,58379.0,0.0728461]
[1725173575170,0.023,58382.0,58379.0,0.0728461]
[1725173575576,0.023,58382.0,58379.0,0.0718461]
[1725173575780,0.023,58382.0,58379.0,0.0698461]
[1725173576254,0.023,58382.0,58379.0,0.2411401]
[1725173576457,0.023,58382.0,58380.0,0.171291]
[1725173576721,0.023,58382.0,58381.0,0.171288]
[1725173576722,0.04985931,58382.0,58381.0,0.171288]
[1725173576922,0.023,58382.0,58381.0,0.171288]
[1725173577342,0.023,58382.0,58379.0,0.4124321]
[1725173577343,0.023,58382.0,58379.0,0.2411401]
[1725173577567,0.09497347,58380.0,58379.0,0.2411401]
[1725173579272,0.09497347,58380.0,58379.0,0.2441401]
[1725173583674,0.09497347,58380.0,58379.0,0.0728461]
[1725173584114,0.09497347,58380.0,58379.0,0.2441401]
[1725173584391,0.15815592,58380.0,58379.0,0.2441401]
[1725173585313,0.09497347,58380.0,58379.0,0.2441401]
[1725173587162,0.09497347,58380.0,58379.0,0.0728461]
[1725173587385,0.11797347,58380.0,58379.0,0.0079461]
[1725173588130,0.29008247,58380.0,58379.0,0.0079461]
[1725173588309,0.36126305,58380.0,58379.0,0.0079461]
[1725173588562,0.36126305,58380.0,58379.0,0.003]
[1725173588815,0.70384605,58380.0,58379.0,0.003]
[1725173589281,1.04642905,58380.0,58379.0,0.003]
[1725173590683,0.685984,58380.0,58379.0,0.003]
[1725173590917,0.78095747,58380.0,58379.0,0.003]
[1725173591411,0.95224847,58380.0,58379.0,0.003]
[1725173592565,0.60966547,58380.0,58379.0,0.003]
[1725173595152,0.26708247,58380.0,58379.0,0.003]
[1725173595377,0.26708247,58380.0,58379.0,0.0648]
[1725173596544,0.26708247,58380.0,58379.0,0.236094]
[1725173596545,0.000818,58380.0,58379.0,0.236094]
[1725173596773,0.02767801,58380.0,58379.0,0.236094]
[1725173597000,0.02767801,58380.0,58379.0,0.312194]
[1725173600256,0.000818,58380.0,58379.0,0.312194]
[1725173603088,0.000818,58380.0,58379.0,0.1409]
[1725173603292,0.000818,58380.0,58379.0,0.003]
[1725173603761,0.172109,58380.0,58379.0,0.003]
[1725173604388,0.514692,58380.0,58379.0,0.003]
[1725173604595,0.54155252,58380.0,58379.0,0.003]
[1725173606655,1.13149896,58380.0,58379.0,0.003]
[1725173606854,1.49708196,58380.0,58379.0,0.003]
[1725173607077,1.59708196,58380.0,58379.0,0.003]
[1725173607737,1.59708196,58380.0,58379.0,0.002]
[1725173607911,1.1991,58377.0,58376.0,0.0008998]
[1725173608059,1.48562511,58377.0,58376.0,0.0008998]
[1725173610721,1.53862511,58377.0,58376.0,0.0008998]
[1725173610931,1.54462511,58377.0,58376.0,0.0008998]
[1725173612235,1.64662511,58377.0,58376.0,0.0008998]
[1725173613679,1.67349079,58377.0,58376.0,0.0008998]
[1725173613886,1.67149079,58377.0,58376.0,0.0008998]
[1725173614107,1.67349079,58377.0,58376.0,0.0008998]
[1725173614685,1.50293915,58377.0,58376.0,0.0008998]
[1725173614893,1.44993915,58377.0,58376.0,0.0008998]
[1725173616471,1.35496568,58377.0,58376.0,0.0008998]
[1725173616726,1.44993915,58377.0,58376.0,0.0008998]
[1725173617999,1.51866815,58377.0,58376.0,0.0008998]
[1725173619355,2.16200853,58377.0,58376.0,0.0008998]
[1725173619608,2.16400853,58377.0,58376.0,0.0008998]
[1725173620245,2.13714285,58377.0,58376.0,0.0008998]
[1725173623296,2.13514285,58377.0,58376.0,0.0008998]
[1725173623510,2.16200866,58377.0,58376.0,0.0008998]
[1725173624487,2.16400866,58377.0,58376.0,0.0008998]
[1725173629178,1.201222,58371.0,58370.0,0.0008998]
[1725173629406,1.79622247,58371.0,58370.0,0.0008998]
[1725173629637,2.13885747,58371.0,58370.0,0.0008998]
[1725173629850,2.24551232,58371.0,58370.0,0.0008998]
[1725173630316,2.21864378,58371.0,58370.0,0.0008998]
[1725173630529,2.39319542,58371.0,58370.0,0.0018998]
[1725173630967,2.18105642,58371.0,58370.0,0.0028998]
[1725173631168,2.01250478,58371.0,58370.0,0.0028998]
[1725173632028,1.89261678,58371.0,58370.0,0.0018998]
[1725173632243,1.90661678,58371.0,58370.0,0.0028998]
[1725173632450,1.90861678,58371.0,58370.0,0.0018998]
[1725173632661,2.06316842,58371.0,58370.0,0.0008998]
[1725173632873,2.07716842,58371.0,58370.0,0.0018998]
[1725173633088,2.09116842,58371.0,58370.0,0.0018998]
[1725173633300,2.25503831,58371.0,58370.0,0.0008998]
[1725173633721,2.63211313,58371.0,58370.0,0.0018998]
[1725173633932,2.63211313,58371.0,58360.0,0.0008998]
[1725173633933,1.201429,58361.0,58360.0,0.0008998]
[1725173634190,1.41940247,58361.0,58360.0,0.0008998]
[1725173634620,1.4462734,58361.0,58360.0,0.0008998]
[1725173635051,1.4442734,58361.0,58360.0,0.0008998]
[1725173635482,1.4462734,58361.0,58360.0,0.0008998]
[1725173635680,1.61311378,58361.0,58360.0,0.0008998]
[1725173635909,1.61911378,58361.0,58360.0,0.0018998]
[1725173636117,1.62411378,58361.0,58360.0,0.0018998]
[1725173636357,1.62211378,58361.0,58360.0,0.0018998]
[1725173637381,1.70496677,58361.0,58360.0,0.0018998]
[1725173639102,1.70696677,58361.0,58360.0,0.0018998]
[1725173639512,1.70496677,58361.0,58360.0,0.0018998]
[1725173639712,1.53812639,58361.0,58360.0,0.0661998]
[1725173640371,1.51125546,58361.0,58360.0,0.0661998]
[1725173640581,1.397729,58361.0,58360.0,0.0661998]
[1725173640786,1.49270247,58361.0,58360.0,0.0661998]
[1725173640967,1.64217272,58361.0,58360.0,0.0661998]
[1725173641747,1.15000847,58361.0,58360.0,0.0661998]
[1725173641970,1.15000847,58361.0,58360.0,0.1413998]
[1725173641971,0.37732047,58361.0,58360.0,0.1413998]
[1725173642435,0.72001447,58361.0,58360.0,0.1413998]
[1725173643278,0.74688389,58361.0,58360.0,0.1413998]
[1725173643704,0.85584128,58361.0,58360.0,0.1413998]
[1725173645970,0.30921642,58361.0,58360.0,0.1413998]
[1725173646383,0.40418989,58361.0,58360.0,0.1413998]
[1725173647215,0.39918989,58361.0,58360.0,0.1413998]
[1725173647854,0.09497347,58361.0,58360.0,0.1413998]
[1725173648065,0.26632047,58361.0,58360.0,0.1413998]
[1725173648280,0.26632047,58361.0,58360.0,0.1403998]
[1725173648694,0.26632047,58361.0,58360.0,0.1413998]
[1725173650918,0.09497347,58361.0,58360.0,0.1413998]
[1725173652010,0.26632047,58361.0,58360.0,0.1413998]
[1725173652239,0.60901447,58361.0,58360.0,0.1413998]
[1725173652467,0.26632047,58361.0,58360.0,0.1413998]
[1725173653549,0.29318971,58361.0,58360.0,0.1413998]
[1725173653974,0.35707566,58361.0,58360.0,0.1413998]
[1725173654181,0.29318971,58361.0,58360.0,0.1413998]
[1725173655087,0.63588371,58361.0,58360.0,0.1413998]
[1725173659003,0.97857771,58361.0,58360.0,0.1413998]
[1725173660188,0.95170847,58361.0,58360.0,0.1413998]
[1725173664638,0.97857694,58361.0,58360.0,0.1413998]
[1725173666359,1.07673321,58361.0,58360.0,0.0661998]
[1725173666584,1.07286474,58361.0,58360.0,0.0661998]
[1725173667049,1.41555874,58361.0,58360.0,0.0018998]
[1725173667498,1.46855874,58361.0,58360.0,0.0018998]
[1725173669075,1.44224107,58361.0,58360.0,0.0018998]
[1725173669715,1.44911607,58361.0,58360.0,0.0018998]
[1725173671071,1.45111607,58361.0,58360.0,0.0018998]
[1725173671285,1.44911607,58361.0,58360.0,0.0018998]
[1725173671716,1.45111607,58361.0,58360.0,0.0018998]
[1725173672861,1.3039598,58361.0,58360.0,0.0028998]
[1725173673128,1.3039598,58361.0,58360.0,0.0018998]
[1725173673363,0.9552658,58361.0,58360.0,0.0008998]
[1725173673591,0.9652658,58361.0,58360.0,0.0018998]
[1725173673818,0.9552658,58361.0,58360.0,0.0008998]
[1725173674045,0.9552658,58361.0,58360.0,0.0018998]
[1725173674046,0.9660838,58361.0,58360.0,0.0018998]
[1725173674488,1.3087778,58361.0,58360.0,0.0018998]
[1725173674714,0.9660838,58361.0,58360.0,0.0018998]
[1725173674950,0.9720838,58361.0,58360.0,0.0028998]
[1725173675424,0.87711033,58361.0,58360.0,0.0028998]
[1725173675650,0.9720838,58361.0,58360.0,0.0028998]
[1725173676803,0.99895399,58361.0,58360.0,0.0028998]
[1725173681859,0.9720838,58361.0,58360.0,0.0028998]
[1725173684757,1.06290318,58361.0,58360.0,0.0028998]
[1725173686130,1.08977322,58361.0,58360.0,0.0028998]
[1725173687049,0.99895384,58361.0,58360.0,0.0028998]
[1725173690420,0.9720838,58361.0,58360.0,0.0028998]
[1725173694295,1.3677778,58361.0,58360.0,0.0028998]
[1725173694781,1.3147778,58361.0,58360.0,0.0028998]
[1725173694998,1.34164919,58361.0,58360.0,0.0028998]
[1725173695675,1.50650918,58361.0,58360.0,0.0028998]
[1725173699146,1.34164919,58361.0,58360.0,0.0028998]
[1725173700328,1.3147778,58361.0,58360.0,0.0028998]
[1725173700772,1.3147778,58361.0,58360.0,0.0669998]
[1725173704884,1.34164875,58361.0,58360.0,0.0669998]
[1725173705331,1.02527242,58361.0,58360.0,0.0669998]
[1725173705822,1.36796642,58361.0,58360.0,0.0669998]
[1725173706717,1.36782879,58361.0,58360.0,0.0669998]
[1725173708803,1.36782879,58361.0,58360.0,0.0028998]
[1725173710355,1.34095784,58361.0,58360.0,0.0028998]
[1725173710783,1.46097329,58361.0,58360.0,0.0028998]
[1725173714192,1.51597329,58361.0,58360.0,0.0028998]
[1725173714868,1.54284472,58361.0,58360.0,0.0028998]
[1725173719585,1.88553872,58361.0,58360.0,0.0028998]
[1725173719811,1.98553872,58361.0,58360.0,0.0028998]
[1725173720034,1.46982927,58361.0,58360.0,0.0653998]
[1725173720248,1.44295784,58361.0,58360.0,0.0653998]
[1725173722418,1.44295784,58361.0,58360.0,0.0028998]
[1725173722687,1.6045461,58361.0,58360.0,0.0028998]
[1725173724778,1.63141828,58361.0,58360.0,0.0028998]
[1725173726556,1.97411228,58361.0,58360.0,0.0028998]
[1725173726774,1.63141828,58361.0,58360.0,0.0028998]
[1725173726977,1.97411228,58361.0,58360.0,0.0028998]
[1725173727420,1.46983002,58361.0,58360.0,0.0028998]
[1725173729894,1.46783002,58361.0,58360.0,0.0028998]
[1725173730098,1.46983002,58361.0,58360.0,0.0028998]
[1725173730324,1.44295784,58361.0,58360.0,0.0028998]
[1725173730565,1.44095784,58361.0,58360.0,0.0028998]
[1725173730789,1.60284364,58361.0,58360.0,0.0028998]
[1725173731747,1.44095784,58361.0,58360.0,0.0028998]
[1725173734181,1.43989984,58361.0,58360.0,0.0028998]
[1725173734916,1.46677183,58361.0,58360.0,0.0028998]
[1725173736017,1.46877183,58361.0,58360.0,0.0028998]
[1725173737326,1.46996746,58361.0,58360.0,0.0028998]
[1725173737555,1.52296746,58361.0,58360.0,0.0028998]
[1725173737809,1.68755841,58361.0,58360.0,0.0028998]
[1725173739387,2.03025241,58361.0,58360.0,0.0028998]
[1725173740331,1.66068642,58361.0,58360.0,0.0028998]
[1725173741718,2.00338042,58361.0,58360.0,0.0028998]
[1725173743143,2.12944042,58361.0,58360.0,0.0028998]
[1725173743400,2.00338042,58361.0,58360.0,0.0028998]
[1725173743650,2.3656237,58361.0,58360.0,0.0028998]
[1725173747025,2.3656237,58361.0,58341.0,0.008987]
[1725173747026,1.244421,58342.0,58341.0,0.008987]
[1725173747244,0.859132,58334.0,58331.0,0.070287]
[1725173747454,1.199985,58334.0,58331.0,0.070287]
[1725173747667,1.199985,58334.0,58333.0,0.145387]
[1725173747668,0.95210547,58334.0,58333.0,0.145387]
[1725173747882,0.9789878,58334.0,58333.0,0.145387]
[1725173748092,1.0707638,58334.0,58333.0,0.145387]
[1725173749188,1.10855998,58334.0,58333.0,0.145387]
[1725173749672,1.0847638,58334.0,58333.0,0.145387]
[1725173750149,1.0707638,58334.0,58333.0,0.145387]
[1725173750358,1.07088147,58334.0,58333.0,0.145387]
[1725173750577,0.267202,58334.0,58333.0,0.145387]
[1725173750799,0.014,58334.0,58333.0,0.145387]
[1725173751026,0.027,58334.0,58333.0,0.145387]
[1725173751686,0.185426,58334.0,58333.0,0.145387]
[1725173751944,0.194426,58334.0,58333.0,0.145387]
[1725173752378,0.180426,58334.0,58333.0,0.145387]
[1725173752828,0.21236892,58334.0,58333.0,0.145387]
[1725173753092,0.190426,58334.0,58333.0,0.14487122]
[1725173753320,0.190426,58334.0,58333.0,0.14461922]
[1725173753782,0.190426,58334.0,58333.0,0.14436133]
[1725173754446,0.533279,58334.0,58333.0,0.14436133]
[1725173754660,0.56016028,58334.0,58333.0,0.14436133]
[1725173754879,0.56016028,58334.0,58333.0,0.14410344]
[1725173755820,0.56016028,58334.0,58333.0,0.14384555]
[1725173756497,0.56016028,58334.0,58333.0,0.14358766]
[1725173759031,0.56016028,58334.0,58333.0,0.14332977]
[1725173759253,0.56016028,58334.0,58333.0,0.13967309]
[1725173760194,0.69424195,58334.0,58333.0,0.13967309]
[1725173760415,0.533279,58334.0,58333.0,0.13967309]
[1725173761097,0.190426,58334.0,58333.0,0.13967309]
[1725173763569,0.56016016,58334.0,58333.0,0.13967309]
[1725173764027,0.21730716,58334.0,58333.0,0.13967309]
[1725173765140,0.04588116,58334.0,58333.0,0.13967309]
[1725173765357,0.21730716,58334.0,58333.0,0.13967309]
[1725173765574,0.04588116,58334.0,58333.0,0.13967309]
[1725173769426,0.04669916,58334.0,58333.0,0.13967309]
[1725173770306,0.019818,58334.0,58333.0,0.13967309]
[1725173773223,0.019818,58334.0,58333.0,0.31610209]
[1725173773438,0.019818,58334.0,58333.0,0.65896109]
[1725173774292,0.010818,58334.0,58333.0,0.65896109]
[1725173774508,0.000818,58334.0,58333.0,0.65896109]
[1725173774718,0.000818,58334.0,58333.0,0.31610209]
[1725173774928,0.000818,58334.0,58333.0,0.65896109]
[1725173775580,0.009818,58334.0,58333.0,0.65896109]
[1725173776048,0.009818,58334.0,58333.0,0.66096109]